[Event "Early-Titled-Tuesday-Blitz-August-29-2023"]
[Site "Chess.com"]
[Date "2023.08.29"]
[Round "1"]
[White "Orujov2008"]
[Black "Iunusovnuriddin"]
[Result "0-1"]
[WhiteElo "2601"]
[BlackElo "2298"]
[TimeControl "180+1"]
[EndTime "8:06:58 PDT"]
[Termination "Iunusovnuriddin won by resignation"]

1. e4 {[%clk 0:03:00.9]} 1... e5 {[%clk 0:02:58.6]} 2. Nf3 {[%clk 0:03:01.1]}
2... Nc6 {[%clk 0:02:58.8]} 3. Bb5 {[%clk 0:03:01.7]} 3... a6 {[%clk 0:02:59.3]}
4. Ba4 {[%clk 0:03:01.3]} 4... Nf6 {[%clk 0:02:59.4]} 5. d4 {[%clk 0:02:59.9]}
5... exd4 {[%clk 0:02:43.8]} 6. O-O {[%clk 0:02:58.5]} 6... b5 {[%clk
0:02:34.7]} 7. Bb3 {[%clk 0:02:58]} 7... d6 {[%clk 0:02:34.3]} 8. Ng5 {[%clk
0:02:56.4]} 8... Be6 {[%clk 0:01:49.5]} 9. Bxe6 {[%clk 0:02:55.1]} 9... fxe6
{[%clk 0:01:49.7]} 10. Nxe6 {[%clk 0:02:56]} 10... Qd7 {[%clk 0:01:50]} 11. Nxd4
{[%clk 0:02:56.2]} 11... Be7 {[%clk 0:01:45.8]} 12. Nxc6 {[%clk 0:02:54.1]}
12... Qxc6 {[%clk 0:01:46.7]} 13. Nc3 {[%clk 0:02:54.1]} 13... Nxe4 {[%clk
0:01:32.7]} 14. Nxe4 {[%clk 0:02:50.8]} 14... Qxe4 {[%clk 0:01:33.6]} 15. Re1
{[%clk 0:02:51.4]} 15... Qf5 {[%clk 0:01:33.9]} 16. Qe2 {[%clk 0:02:39.2]} 16...
Qf6 {[%clk 0:01:27]} 17. f3 {[%clk 0:02:14.6]} 17... Kf7 {[%clk 0:01:13.1]} 18.
Bd2 {[%clk 0:02:03.8]} 18... Rhe8 {[%clk 0:01:10.4]} 19. Bc3 {[%clk 0:02:03.7]}
19... Qg6 {[%clk 0:01:08.7]} 20. Qd2 {[%clk 0:01:56.4]} 20... c6 {[%clk
0:00:55.4]} 21. a4 {[%clk 0:01:49.5]} 21... Qg5 {[%clk 0:00:36.6]} 22. f4 {[%clk
0:01:33.5]} 22... Qc5+ {[%clk 0:00:36.1]} 23. Bd4 {[%clk 0:01:27.6]} 23... Qd5
{[%clk 0:00:36.3]} 24. Qc3 {[%clk 0:01:20.5]} 24... b4 {[%clk 0:00:34]} 25. Qe3
{[%clk 0:01:02.3]} 25... c5 {[%clk 0:00:31.7]} 26. Rad1 {[%clk 0:00:53]} 26...
cxd4 {[%clk 0:00:27.8]} 27. Rxd4 {[%clk 0:00:51.3]} 27... Qf5 {[%clk 0:00:22.5]}
28. Qb3+ {[%clk 0:00:49.5]} 28... Kf8 {[%clk 0:00:22.3]} 29. Qxb4 {[%clk
0:00:43.9]} 29... Bf6 {[%clk 0:00:21]} 30. Rxd6 {[%clk 0:00:33.6]} 30... Rxe1+
{[%clk 0:00:20.2]} 31. Qxe1 {[%clk 0:00:34.2]} 31... Qc5+ {[%clk 0:00:19.8]} 32.
Kh1 {[%clk 0:00:31.2]} 32... Qxd6 {[%clk 0:00:20]} 33. h3 {[%clk 0:00:31.4]}
33... Rd8 {[%clk 0:00:20]} 34. Kh2 {[%clk 0:00:31.8]} 34... Qxf4+ {[%clk
0:00:20]} 35. Kh1 {[%clk 0:00:31.6]} 35... Be5 {[%clk 0:00:19.2]} 36. Qg1 {[%clk
0:00:30.9]} 36... Rd1 {[%clk 0:00:19.3]} 0-1

[Event "Early-Titled-Tuesday-Blitz-August-29-2023"]
[Site "Chess.com"]
[Date "2023.08.29"]
[Round "1"]
[White "EvgenyBurmakin"]
[Black "bazar-wokzal"]
[Result "0-1"]
[WhiteElo "2267"]
[BlackElo "2611"]
[TimeControl "180+1"]
[EndTime "8:07:03 PDT"]
[Termination "bazar-wokzal won on time"]

1. e4 {[%clk 0:02:55.4]} 1... Nc6 {[%clk 0:02:59.1]} 2. Nf3 {[%clk 0:02:38.2]}
2... d5 {[%clk 0:02:58]} 3. exd5 {[%clk 0:02:38.7]} 3... Qxd5 {[%clk 0:02:57.3]}
4. Nc3 {[%clk 0:02:39.3]} 4... Qa5 {[%clk 0:02:57.3]} 5. Bb5 {[%clk 0:02:31]}
5... Bd7 {[%clk 0:02:57.1]} 6. d4 {[%clk 0:02:19]} 6... a6 {[%clk 0:02:56.2]} 7.
Ba4 {[%clk 0:02:08.2]} 7... O-O-O {[%clk 0:02:54.7]} 8. d5 {[%clk 0:01:46.6]}
8... Be6 {[%clk 0:02:32.7]} 9. Bb3 {[%clk 0:01:13.3]} 9... Bg4 {[%clk
0:02:13.3]} 10. Qd3 {[%clk 0:00:54.7]} 10... Nb4 {[%clk 0:02:09.6]} 11. Qe3
{[%clk 0:00:34.9]} 11... Nxd5 {[%clk 0:02:00.1]} 12. Bxd5 {[%clk 0:00:26.7]}
12... Rxd5 {[%clk 0:01:59.2]} 13. Qa7 {[%clk 0:00:20.6]} 13... Bxf3 {[%clk
0:01:56.6]} 14. gxf3 {[%clk 0:00:21.1]} 14... Nf6 {[%clk 0:01:43.2]} 15. Qa8+
{[%clk 0:00:17.6]} 15... Kd7 {[%clk 0:01:43.1]} 16. Qxb7 {[%clk 0:00:18.4]}
16... Re5+ {[%clk 0:01:39.8]} 17. Be3 {[%clk 0:00:17.9]} 17... e6 {[%clk
0:01:20.3]} 18. O-O-O+ {[%clk 0:00:18.4]} 18... Bd6 {[%clk 0:01:20]} 19. f4
{[%clk 0:00:14.5]} 19... Rf5 {[%clk 0:01:17.5]} 20. Rhg1 {[%clk 0:00:12]} 20...
g6 {[%clk 0:01:07.4]} 21. Rxd6+ {[%clk 0:00:06.7]} 21... Kxd6 {[%clk 0:01:04]}
22. Rd1+ {[%clk 0:00:07.3]} 22... Ke7 {[%clk 0:00:35.9]} 23. Qc6 {[%clk
0:00:06.9]} 23... Rd8 {[%clk 0:00:21.4]} 24. Rxd8 {[%clk 0:00:05.9]} 24... Kxd8
{[%clk 0:00:21.2]} 25. Qa8+ {[%clk 0:00:03.2]} 25... Ke7 {[%clk 0:00:20.8]} 26.
Qc6 {[%clk 0:00:03.1]} 26... Nd5 {[%clk 0:00:19.3]} 27. Ne4 {[%clk 0:00:02.2]}
27... Kf8 {[%clk 0:00:14.8]} 0-1

[Event "Early-Titled-Tuesday-Blitz-August-29-2023"]
[Site "Chess.com"]
[Date "2023.08.29"]
[Round "1"]
[White "artin10862"]
[Black "Tsyhanchuk_Stanislav"]
[Result "1-0"]
[WhiteElo "2807"]
[BlackElo "2428"]
[TimeControl "180+1"]
[EndTime "8:07:05 PDT"]
[Termination "artin10862 won by resignation"]

1. e4 {[%clk 0:02:59.2]} 1... c5 {[%clk 0:02:59.4]} 2. Nf3 {[%clk 0:02:58.7]}
2... d6 {[%clk 0:02:57.8]} 3. Bb5+ {[%clk 0:02:54.5]} 3... Nd7 {[%clk
0:02:57.3]} 4. Ba4 {[%clk 0:02:43.6]} 4... a6 {[%clk 0:02:49.8]} 5. c3 {[%clk
0:02:37.2]} 5... g6 {[%clk 0:02:44.7]} 6. d4 {[%clk 0:02:36.7]} 6... cxd4 {[%clk
0:02:44.1]} 7. cxd4 {[%clk 0:02:36.2]} 7... Bg7 {[%clk 0:02:42.4]} 8. O-O {[%clk
0:02:34.1]} 8... b5 {[%clk 0:02:40.4]} 9. Bb3 {[%clk 0:02:33.6]} 9... Bb7 {[%clk
0:02:37.2]} 10. Bxf7+ {[%clk 0:01:47.3]} 10... Kxf7 {[%clk 0:02:27.9]} 11. Qb3+
{[%clk 0:01:40.5]} 11... d5 {[%clk 0:02:19.7]} 12. Ng5+ {[%clk 0:01:39.7]} 12...
Ke8 {[%clk 0:02:14.4]} 13. Qf3 {[%clk 0:01:27.1]} 13... Bf6 {[%clk 0:01:38.7]}
14. Ne6 {[%clk 0:01:07.8]} 14... Qb6 {[%clk 0:01:37.3]} 15. exd5 {[%clk
0:01:07.7]} 15... Qxe6 {[%clk 0:01:32.4]} 16. dxe6 {[%clk 0:01:08.6]} 16... Bxf3
{[%clk 0:01:29.8]} 17. exd7+ {[%clk 0:01:09.5]} 17... Kxd7 {[%clk 0:01:30.7]}
18. gxf3 {[%clk 0:01:10.1]} 18... Bxd4 {[%clk 0:01:08.9]} 19. Rd1 {[%clk
0:01:09.3]} 19... e5 {[%clk 0:01:09.2]} 20. Be3 {[%clk 0:01:00.6]} 20... Ne7
{[%clk 0:01:01.4]} 21. Bxd4 {[%clk 0:00:58.8]} 21... exd4 {[%clk 0:01:01.6]} 22.
Rxd4+ {[%clk 0:00:59.7]} 22... Kc6 {[%clk 0:00:59.4]} 23. Nc3 {[%clk 0:00:47.6]}
23... Nf5 {[%clk 0:00:59.4]} 24. Rd3 {[%clk 0:00:42.8]} 24... Rhe8 {[%clk
0:00:46.4]} 25. Rc1 {[%clk 0:00:41.4]} 25... Rac8 {[%clk 0:00:26.1]} 26. Na4+
{[%clk 0:00:32]} 26... Kb7 {[%clk 0:00:20.6]} 27. Rd7+ {[%clk 0:00:25.2]} 27...
Kb8 {[%clk 0:00:20.9]} 28. Nc5 {[%clk 0:00:24.2]} 28... Rc6 {[%clk 0:00:15.1]}
29. b4 {[%clk 0:00:23.6]} 29... h5 {[%clk 0:00:12.4]} 30. Rcd1 {[%clk
0:00:19.5]} 30... Nh4 {[%clk 0:00:11.2]} 31. Rf7 {[%clk 0:00:16.5]} 31... Rc7
{[%clk 0:00:08.2]} 32. Nxa6+ {[%clk 0:00:16.1]} 1-0

[Event "Early-Titled-Tuesday-Blitz-August-29-2023"]
[Site "Chess.com"]
[Date "2023.08.29"]
[Round "1"]
[White "ViktoriyaTarasova"]
[Black "The_Machine04"]
[Result "1-0"]
[WhiteElo "2401"]
[BlackElo "2686"]
[TimeControl "180+1"]
[EndTime "8:07:06 PDT"]
[Termination "ViktoriyaTarasova won by checkmate"]

1. d4 {[%clk 0:03:00.5]} 1... d6 {[%clk 0:03:00]} 2. e4 {[%clk 0:02:55.4]} 2...
Nf6 {[%clk 0:03:00.1]} 3. Nc3 {[%clk 0:02:55.2]} 3... e5 {[%clk 0:02:59.3]} 4.
Nf3 {[%clk 0:02:54.8]} 4... Nbd7 {[%clk 0:02:58.5]} 5. Bc4 {[%clk 0:02:54.7]}
5... Be7 {[%clk 0:02:57.6]} 6. O-O {[%clk 0:02:54.5]} 6... c6 {[%clk 0:02:58.2]}
7. a4 {[%clk 0:02:54.1]} 7... h6 {[%clk 0:02:58]} 8. h3 {[%clk 0:02:53.6]} 8...
Qc7 {[%clk 0:02:57.8]} 9. Be3 {[%clk 0:02:53.3]} 9... Nf8 {[%clk 0:02:57.8]} 10.
Re1 {[%clk 0:02:53.2]} 10... g5 {[%clk 0:02:56.2]} 11. Nd2 {[%clk 0:02:39.8]}
11... Ng6 {[%clk 0:02:56]} 12. Nf1 {[%clk 0:02:39.1]} 12... g4 {[%clk
0:02:52.6]} 13. hxg4 {[%clk 0:02:37.5]} 13... Bxg4 {[%clk 0:02:53.5]} 14. f3
{[%clk 0:02:37.6]} 14... Be6 {[%clk 0:02:54.1]} 15. Bxe6 {[%clk 0:02:25.9]}
15... fxe6 {[%clk 0:02:55]} 16. dxe5 {[%clk 0:02:24.5]} 16... dxe5 {[%clk
0:02:53.6]} 17. a5 {[%clk 0:02:23]} 17... h5 {[%clk 0:02:53.2]} 18. Na4 {[%clk
0:02:16.5]} 18... h4 {[%clk 0:02:48.4]} 19. Nc5 {[%clk 0:02:13.1]} 19... Kf7
{[%clk 0:02:46.8]} 20. c3 {[%clk 0:02:10.7]} 20... Rag8 {[%clk 0:02:40.3]} 21.
Nxe6 {[%clk 0:01:45.7]} 21... Kxe6 {[%clk 0:02:41.2]} 22. Qb3+ {[%clk
0:01:45.8]} 22... Kd7 {[%clk 0:02:40.7]} 23. Red1+ {[%clk 0:01:39.9]} 23... Kc8
{[%clk 0:02:40.6]} 24. Bxa7 {[%clk 0:01:36.9]} 24... Nf4 {[%clk 0:02:40.1]} 25.
Ne3 {[%clk 0:01:32.6]} 25... h3 {[%clk 0:01:49.4]} 26. g4 {[%clk 0:01:29.1]}
26... h2+ {[%clk 0:01:35.2]} 27. Kh1 {[%clk 0:01:28.9]} 27... c5 {[%clk
0:00:47.6]} 28. Nf5 {[%clk 0:01:16.7]} 28... Rh7 {[%clk 0:00:14.5]} 29. a6
{[%clk 0:01:05.6]} 29... b5 {[%clk 0:00:14.1]} 30. Bb6 {[%clk 0:00:48.1]} 30...
Qxb6 {[%clk 0:00:13.6]} 31. a7 {[%clk 0:00:48.8]} 31... Kb7 {[%clk 0:00:12.7]}
32. Qxg8 {[%clk 0:00:46]} 32... Nxg8 {[%clk 0:00:05.4]} 33. a8=Q+ {[%clk
0:00:45.6]} 33... Kc7 {[%clk 0:00:06.3]} 34. Ra7+ {[%clk 0:00:43.6]} 34... Qxa7
{[%clk 0:00:05.8]} 35. Qxa7+ {[%clk 0:00:43.9]} 35... Kc6 {[%clk 0:00:06.7]} 36.
Qa8+ {[%clk 0:00:42.2]} 36... Kc7 {[%clk 0:00:06.8]} 37. Qxg8 {[%clk 0:00:41.5]}
37... Rh3 {[%clk 0:00:06.1]} 38. Nxe7 {[%clk 0:00:36.7]} 38... Rxf3 {[%clk
0:00:06.1]} 39. Qd8+ {[%clk 0:00:35.8]} 39... Kb7 {[%clk 0:00:05.7]} 40. Rd7+
{[%clk 0:00:34]} 40... Ka6 {[%clk 0:00:05.6]} 41. Qa8+ {[%clk 0:00:33.4]} 41...
Kb6 {[%clk 0:00:06.2]} 42. Rb7# {[%clk 0:00:30]} 1-0

[Event "Early-Titled-Tuesday-Blitz-August-29-2023"]
[Site "Chess.com"]
[Date "2023.08.29"]
[Round "1"]
[White "workhard91"]
[Black "TanitoluwaAps116"]
[Result "0-1"]
[WhiteElo "2415"]
[BlackElo "2761"]
[TimeControl "180+1"]
[EndTime "8:07:09 PDT"]
[Termination "TanitoluwaAps116 won on time"]

1. e4 {[%clk 0:03:00.9]} 1... c5 {[%clk 0:02:33]} 2. Nf3 {[%clk 0:02:59.8]} 2...
Nc6 {[%clk 0:02:32.6]} 3. Bb5 {[%clk 0:02:58.6]} 3... g6 {[%clk 0:02:32.3]} 4.
Bxc6 {[%clk 0:02:58.4]} 4... bxc6 {[%clk 0:02:33.2]} 5. O-O {[%clk 0:02:58.6]}
5... Bg7 {[%clk 0:02:32.9]} 6. Re1 {[%clk 0:02:54.6]} 6... Qc7 {[%clk
0:02:30.6]} 7. h3 {[%clk 0:02:35.2]} 7... Nf6 {[%clk 0:02:30]} 8. e5 {[%clk
0:01:55]} 8... Nd5 {[%clk 0:02:24.9]} 9. d3 {[%clk 0:01:54.3]} 9... O-O {[%clk
0:02:18.6]} 10. Na3 {[%clk 0:01:53.5]} 10... d6 {[%clk 0:02:16.1]} 11. Nc4
{[%clk 0:01:48.3]} 11... Ba6 {[%clk 0:02:14.1]} 12. exd6 {[%clk 0:01:48.4]}
12... exd6 {[%clk 0:02:13.9]} 13. c3 {[%clk 0:01:43.9]} 13... Rae8 {[%clk
0:02:08.5]} 14. Bg5 {[%clk 0:01:41.2]} 14... h6 {[%clk 0:02:05.6]} 15. Bh4
{[%clk 0:01:38.9]} 15... Rxe1+ {[%clk 0:02:03.5]} 16. Qxe1 {[%clk 0:01:38.5]}
16... Nf4 {[%clk 0:01:58.6]} 17. Qd2 {[%clk 0:01:38.1]} 17... d5 {[%clk
0:01:47.6]} 18. Bg3 {[%clk 0:01:36.8]} 18... g5 {[%clk 0:01:45.3]} 19. Ne3
{[%clk 0:01:18.9]} 19... Qd7 {[%clk 0:01:44.2]} 20. Bxf4 {[%clk 0:01:06.6]}
20... gxf4 {[%clk 0:01:45.1]} 21. Nc2 {[%clk 0:00:41.8]} 21... Qf5 {[%clk
0:01:41.5]} 22. d4 {[%clk 0:00:41.9]} 22... Bd3 {[%clk 0:01:32.9]} 23. Nce1
{[%clk 0:00:41.8]} 23... Be4 {[%clk 0:01:29]} 24. dxc5 {[%clk 0:00:42]} 24...
Qg6 {[%clk 0:01:19.6]} 25. Rc1 {[%clk 0:00:23.8]} 25... h5 {[%clk 0:01:17.2]}
26. Kh2 {[%clk 0:00:22.2]} 26... Re8 {[%clk 0:01:13]} 27. Nd4 {[%clk 0:00:17.6]}
27... f3 {[%clk 0:01:09.5]} 28. Nexf3 {[%clk 0:00:16.3]} 28... Bh6 {[%clk
0:01:09]} 29. Qd1 {[%clk 0:00:14]} 29... Bf4+ {[%clk 0:01:05.3]} 30. Kg1 {[%clk
0:00:11.7]} 30... Bxf3 {[%clk 0:00:55.4]} 31. Nxf3 {[%clk 0:00:10.9]} 31... Bxc1
{[%clk 0:00:53.4]} 32. Qxc1 {[%clk 0:00:11.8]} 32... Re4 {[%clk 0:00:49.6]} 33.
Nd4 {[%clk 0:00:10.6]} 33... Kh7 {[%clk 0:00:41.3]} 34. f3 {[%clk 0:00:08.4]}
34... Re8 {[%clk 0:00:37.1]} 35. Qf4 {[%clk 0:00:09]} 35... Re1+ {[%clk
0:00:35.2]} 36. Kh2 {[%clk 0:00:08.7]} 36... Re7 {[%clk 0:00:30]} 37. h4 {[%clk
0:00:07.7]} 37... a5 {[%clk 0:00:27.3]} 38. Nf5 {[%clk 0:00:05]} 38... Re6
{[%clk 0:00:25]} 39. Ng3 {[%clk 0:00:01.2]} 39... Rf6 {[%clk 0:00:25.3]} 0-1

[Event "Early-Titled-Tuesday-Blitz-August-29-2023"]
[Site "Chess.com"]
[Date "2023.08.29"]
[Round "1"]
[White "Daniel_Salinas"]
[Black "Vsevolod_Ovchinnikov"]
[Result "1-0"]
[WhiteElo "2297"]
[BlackElo "2601"]
[TimeControl "180+1"]
[EndTime "8:07:09 PDT"]
[Termination "Daniel_Salinas won by resignation"]

1. d4 {[%clk 0:02:59.3]} 1... Nf6 {[%clk 0:03:00.1]} 2. c4 {[%clk 0:02:58.7]}
2... g6 {[%clk 0:03:00.6]} 3. g3 {[%clk 0:02:59]} 3... d5 {[%clk 0:03:00.9]} 4.
cxd5 {[%clk 0:02:58.1]} 4... Nxd5 {[%clk 0:03:01.8]} 5. Bg2 {[%clk 0:02:58.3]}
5... Bg7 {[%clk 0:03:02.5]} 6. e4 {[%clk 0:02:58.8]} 6... Nb6 {[%clk 0:03:03]}
7. Ne2 {[%clk 0:02:58.8]} 7... c5 {[%clk 0:02:59.8]} 8. d5 {[%clk 0:02:59.1]}
8... e6 {[%clk 0:02:59.8]} 9. O-O {[%clk 0:02:59.5]} 9... exd5 {[%clk
0:03:00.2]} 10. exd5 {[%clk 0:02:58.8]} 10... O-O {[%clk 0:03:00.8]} 11. a4
{[%clk 0:02:59.3]} 11... Nc4 {[%clk 0:02:56.9]} 12. Nec3 {[%clk 0:02:56.4]}
12... Nd6 {[%clk 0:02:49.7]} 13. Na3 {[%clk 0:02:54.3]} 13... a6 {[%clk
0:02:31.3]} 14. Bf4 {[%clk 0:02:47.4]} 14... Re8 {[%clk 0:02:27]} 15. Qd2 {[%clk
0:02:45.5]} 15... Bf5 {[%clk 0:01:21.1]} 16. Rfe1 {[%clk 0:02:43.7]} 16... Bf8
{[%clk 0:01:13.8]} 17. Rxe8 {[%clk 0:02:34.1]} 17... Qxe8 {[%clk 0:01:13.6]} 18.
Re1 {[%clk 0:02:20]} 18... Qd8 {[%clk 0:01:14]} 19. Bxd6 {[%clk 0:02:19.8]}
19... Bxd6 {[%clk 0:01:05.7]} 20. Nc4 {[%clk 0:02:20.3]} 20... Bf8 {[%clk
0:00:52.9]} 21. h3 {[%clk 0:02:02.2]} 21... h5 {[%clk 0:00:46.9]} 22. Qf4 {[%clk
0:01:58.3]} 22... Nd7 {[%clk 0:00:27.9]} 23. d6 {[%clk 0:01:43.5]} 23... Ra7
{[%clk 0:00:27.8]} 24. Nd5 {[%clk 0:01:19.9]} 24... Be6 {[%clk 0:00:11]} 25. Nc7
{[%clk 0:00:58.7]} 25... Bxc4 {[%clk 0:00:09.8]} 26. Qxc4 {[%clk 0:00:53.7]}
26... Qf6 {[%clk 0:00:10.4]} 27. Bd5 {[%clk 0:00:42.7]} 27... b5 {[%clk
0:00:05.5]} 28. axb5 {[%clk 0:00:41.5]} 28... axb5 {[%clk 0:00:06]} 29. Nxb5
{[%clk 0:00:42.4]} 29... Rb7 {[%clk 0:00:05]} 30. Bxb7 {[%clk 0:00:41.6]} 30...
h4 {[%clk 0:00:05]} 31. Qf4 {[%clk 0:00:31.1]} 31... Qxb2 {[%clk 0:00:04.5]} 32.
Bd5 {[%clk 0:00:22.8]} 32... Nf6 {[%clk 0:00:04.7]} 33. d7 {[%clk 0:00:18.5]}
33... hxg3 {[%clk 0:00:01.6]} 34. d8=Q {[%clk 0:00:16.9]} 34... gxf2+ {[%clk
0:00:01.6]} 35. Qxf2 {[%clk 0:00:17.8]} 35... Qxf2+ {[%clk 0:00:01.6]} 36. Kxf2
{[%clk 0:00:18.7]} 36... Nxd5 {[%clk 0:00:02.1]} 37. Qxd5 {[%clk 0:00:18.9]} 1-0

[Event "Early-Titled-Tuesday-Blitz-August-29-2023"]
[Site "Chess.com"]
[Date "2023.08.29"]
[Round "1"]
[White "Vesper2018"]
[Black "cottage_cheese"]
[Result "1/2-1/2"]
[WhiteElo "2608"]
[BlackElo "2295"]
[TimeControl "180+1"]
[EndTime "8:07:09 PDT"]
[Termination "Game drawn by repetition"]

1. e4 {[%clk 0:03:00.9]} 1... e5 {[%clk 0:02:50.6]} 2. Nf3 {[%clk 0:03:00.4]}
2... Nc6 {[%clk 0:02:50.3]} 3. Bb5 {[%clk 0:02:57.8]} 3... a6 {[%clk 0:02:50]}
4. Ba4 {[%clk 0:02:57.9]} 4... Nf6 {[%clk 0:02:49.3]} 5. O-O {[%clk 0:02:58]}
5... b5 {[%clk 0:02:43.9]} 6. Bb3 {[%clk 0:02:57.7]} 6... Be7 {[%clk 0:02:38]}
7. Re1 {[%clk 0:02:56.9]} 7... O-O {[%clk 0:02:36.8]} 8. a4 {[%clk 0:02:56.8]}
8... b4 {[%clk 0:02:27.4]} 9. d3 {[%clk 0:02:54.1]} 9... d6 {[%clk 0:02:22.3]}
10. Nbd2 {[%clk 0:02:49.4]} 10... Na5 {[%clk 0:02:14.9]} 11. Ba2 {[%clk
0:02:48.9]} 11... c5 {[%clk 0:02:15]} 12. c3 {[%clk 0:02:44.7]} 12... Rb8 {[%clk
0:02:07.3]} 13. Nf1 {[%clk 0:02:40.8]} 13... Bd7 {[%clk 0:01:41.4]} 14. Ne3
{[%clk 0:02:36.8]} 14... Qe8 {[%clk 0:01:24.2]} 15. Nd5 {[%clk 0:02:29.6]} 15...
Bd8 {[%clk 0:01:09.5]} 16. Nxf6+ {[%clk 0:02:22.5]} 16... Bxf6 {[%clk
0:01:08.6]} 17. Bd5 {[%clk 0:02:23.1]} 17... bxc3 {[%clk 0:00:52.9]} 18. bxc3
{[%clk 0:02:22.7]} 18... Be6 {[%clk 0:00:53.5]} 19. Bg5 {[%clk 0:02:05.6]} 19...
Bxg5 {[%clk 0:00:46.7]} 20. Nxg5 {[%clk 0:02:05.5]} 20... Bxd5 {[%clk
0:00:46.1]} 21. exd5 {[%clk 0:02:05.4]} 21... Qd8 {[%clk 0:00:33.6]} 22. Nf3
{[%clk 0:01:56.8]} 22... Qd7 {[%clk 0:00:26]} 23. Nd2 {[%clk 0:01:51.2]} 23...
Qb7 {[%clk 0:00:22.3]} 24. c4 {[%clk 0:01:40.9]} 24... Qd7 {[%clk 0:00:14.1]}
25. Qc2 {[%clk 0:01:36.1]} 25... Rb4 {[%clk 0:00:13.7]} 26. Ne4 {[%clk
0:01:19.8]} 26... Rfb8 {[%clk 0:00:13]} 27. Nc3 {[%clk 0:01:19.7]} 27... Nb3
{[%clk 0:00:12.2]} 28. Ra2 {[%clk 0:01:18.8]} 28... Nd4 {[%clk 0:00:12.3]} 29.
Qd1 {[%clk 0:01:19.1]} 29... Rb2 {[%clk 0:00:10.2]} 30. Rxb2 {[%clk 0:01:17.4]}
30... Rxb2 {[%clk 0:00:11.1]} 31. Ne4 {[%clk 0:01:15.7]} 31... f5 {[%clk
0:00:08.7]} 32. Nc3 {[%clk 0:01:15.1]} 32... Rc2 {[%clk 0:00:05.3]} 33. Ne2
{[%clk 0:00:49.8]} 33... Rxe2 {[%clk 0:00:04.5]} 34. Rxe2 {[%clk 0:00:50.3]}
34... Nxe2+ {[%clk 0:00:05.4]} 35. Qxe2 {[%clk 0:00:50.9]} 35... Qxa4 {[%clk
0:00:05.9]} 36. h4 {[%clk 0:00:49.3]} 36... Qa1+ {[%clk 0:00:05.1]} 37. Kh2
{[%clk 0:00:49.5]} 37... a5 {[%clk 0:00:05.6]} 38. Qh5 {[%clk 0:00:47]} 38... h6
{[%clk 0:00:04.2]} 39. Qxf5 {[%clk 0:00:44.7]} 39... Qd4 {[%clk 0:00:03.4]} 40.
Qe6+ {[%clk 0:00:37.1]} 40... Kh7 {[%clk 0:00:03.2]} 41. Qf5+ {[%clk 0:00:36.5]}
41... Kg8 {[%clk 0:00:02.9]} 42. Qe6+ {[%clk 0:00:33.3]} 42... Kh7 {[%clk
0:00:03.3]} 43. Qf5+ {[%clk 0:00:33.8]} 43... Kg8 {[%clk 0:00:03.7]} 1/2-1/2

[Event "Early-Titled-Tuesday-Blitz-August-29-2023"]
[Site "Chess.com"]
[Date "2023.08.29"]
[Round "1"]
[White "C_K_G"]
[Black "koncheto"]
[Result "1-0"]
[WhiteElo "1993"]
[BlackElo "2526"]
[TimeControl "180+1"]
[EndTime "8:07:14 PDT"]
[Termination "C_K_G won by resignation"]

1. e4 {[%clk 0:02:57.6]} 1... c5 {[%clk 0:02:56.9]} 2. Nf3 {[%clk 0:02:57.4]}
2... d6 {[%clk 0:02:57.2]} 3. d4 {[%clk 0:02:57.2]} 3... cxd4 {[%clk 0:02:58.1]}
4. Nxd4 {[%clk 0:02:56.9]} 4... Nf6 {[%clk 0:02:57.7]} 5. Nc3 {[%clk 0:02:57.2]}
5... Nc6 {[%clk 0:02:57.5]} 6. Be2 {[%clk 0:02:56.5]} 6... g6 {[%clk 0:02:50.7]}
7. Be3 {[%clk 0:02:56.3]} 7... Bg7 {[%clk 0:02:50.5]} 8. O-O {[%clk 0:02:54.2]}
8... Bd7 {[%clk 0:02:49]} 9. f4 {[%clk 0:02:50.9]} 9... a6 {[%clk 0:02:41.5]}
10. e5 {[%clk 0:02:39.8]} 10... dxe5 {[%clk 0:02:36.1]} 11. Nxc6 {[%clk
0:02:39.4]} 11... Bxc6 {[%clk 0:02:37]} 12. fxe5 {[%clk 0:02:38.5]} 12... Nd5
{[%clk 0:02:14.7]} 13. Bd4 {[%clk 0:02:27.2]} 13... O-O {[%clk 0:02:04.2]} 14.
Bf3 {[%clk 0:02:18.3]} 14... Nxc3 {[%clk 0:01:37]} 15. Bxc3 {[%clk 0:02:16.6]}
15... Qb6+ {[%clk 0:01:25.6]} 16. Kh1 {[%clk 0:02:15.1]} 16... Rad8 {[%clk
0:01:19.8]} 17. Qe1 {[%clk 0:02:14.7]} 17... Bxf3 {[%clk 0:01:12.2]} 18. Rxf3
{[%clk 0:02:13.2]} 18... Qc6 {[%clk 0:01:06.6]} 19. Qe2 {[%clk 0:02:01.3]} 19...
Rd5 {[%clk 0:00:59.7]} 20. Raf1 {[%clk 0:01:54.3]} 20... Qe6 {[%clk 0:00:53.2]}
21. Re3 {[%clk 0:01:10.7]} 21... Rfd8 {[%clk 0:00:51.2]} 22. Qf3 {[%clk
0:01:02.5]} 22... h5 {[%clk 0:00:44.6]} 23. h3 {[%clk 0:01:01.7]} 23... Bh6
{[%clk 0:00:23.6]} 24. Re4 {[%clk 0:00:59.7]} 24... Bd2 {[%clk 0:00:20.4]} 25.
Bxd2 {[%clk 0:00:50.3]} 25... Rxd2 {[%clk 0:00:21.3]} 26. Re2 {[%clk 0:00:31.5]}
26... Rxe2 {[%clk 0:00:19.9]} 27. Qxe2 {[%clk 0:00:31.4]} 27... Qxa2 {[%clk
0:00:20.2]} 28. b3 {[%clk 0:00:30.9]} 28... e6 {[%clk 0:00:08.9]} 29. Qf3 {[%clk
0:00:24.4]} 29... Rd7 {[%clk 0:00:09.3]} 30. Qc3 {[%clk 0:00:24.3]} 30... Qa3
{[%clk 0:00:02.4]} 31. Qc8+ {[%clk 0:00:23.2]} 31... Kg7 {[%clk 0:00:02.7]} 32.
Qxd7 {[%clk 0:00:23.6]} 32... Qf8 {[%clk 0:00:02.2]} 33. Qd4 {[%clk 0:00:22.6]}
33... a5 {[%clk 0:00:02.5]} 34. Qf4 {[%clk 0:00:23.1]} 34... Qe8 {[%clk
0:00:02.5]} 35. Qf6+ {[%clk 0:00:23.1]} 35... Kg8 {[%clk 0:00:03.4]} 36. Rd1
{[%clk 0:00:22.8]} 36... Kh7 {[%clk 0:00:03.5]} 37. Rd8 {[%clk 0:00:22.7]} 1-0